bitfinex/quotes_BTCUSD_20241102
["timestamp","ask_amount","ask_price","bid_price","bid_amount"]
[1730561466857,0.86541,69328.0,69327.0,6.18973825]
[1730561467400,0.866231,69328.0,69327.0,6.18973825]
[1730561467642,0.866231,69328.0,69327.0,6.19173825]
[1730561467842,0.808535,69328.0,69327.0,6.19173825]
[1730561468047,0.721991,69328.0,69327.0,6.23249769]
[1730561468379,0.721991,69328.0,69327.0,6.19173825]
[1730561468718,0.721991,69328.0,69327.0,6.23450007]
[1730561468923,0.721991,69328.0,69327.0,6.19173825]
[1730561469123,0.721991,69328.0,69327.0,6.23450091]
[1730561469321,0.721991,69328.0,69327.0,6.20017091]
[1730561469735,0.721991,69328.0,69327.0,6.15740825]
[1730561470156,0.721991,69328.0,69327.0,6.20017882]
[1730561470396,0.721991,69328.0,69327.0,5.79571382]
[1730561470608,0.721991,69328.0,69327.0,5.75957282]
[1730561470825,0.721991,69328.0,69327.0,5.71680225]
[1730561471028,0.721991,69328.0,69327.0,5.63024225]
[1730561471697,0.721991,69328.0,69327.0,5.62824225]
[1730561471931,0.721991,69328.0,69327.0,5.63024225]
[1730561472137,0.721991,69328.0,69327.0,5.62524225]
[1730561472381,0.721991,69328.0,69327.0,5.54984225]
[1730561472589,0.721991,69328.0,69327.0,5.54484225]
[1730561472795,0.721991,69328.0,69327.0,5.55184225]
[1730561473557,0.721991,69328.0,69327.0,5.81474225]
[1730561473836,0.664295,69328.0,69327.0,5.85952991]
[1730561474057,0.577751,69328.0,69327.0,5.82674225]
[1730561474260,0.577751,69328.0,69327.0,5.81674225]
[1730561474430,1.082601,69328.0,69327.0,5.81674225]
[1730561474632,1.053753,69328.0,69327.0,5.81474225]
[1730561474831,1.024905,69328.0,69327.0,5.80974225]
[1730561475154,0.000818,69335.0,69327.0,5.80974225]
[1730561475155,0.000818,69335.0,69334.0,0.35636]
[1730561475356,0.000818,69335.0,69334.0,7.40036416]
[1730561475673,0.390238,69335.0,69334.0,7.32978752]
[1730561475851,0.361393,69335.0,69334.0,7.32978752]
[1730561476257,0.361393,69335.0,69334.0,2.35293873]
[1730561476460,0.361393,69335.0,69334.0,7.39391573]
[1730561476664,0.274858,69335.0,69334.0,7.39391612]
[1730561476871,0.217168,69335.0,69334.0,7.39391612]
[1730561477232,0.217168,69335.0,69334.0,7.32978752]
[1730561477388,0.866198,69335.0,69334.0,7.33978752]
[1730561477754,0.808508,69335.0,69334.0,7.33978752]
[1730561477976,0.779663,69335.0,69334.0,7.33978752]
[1730561478185,0.721973,69335.0,69334.0,7.33978752]
[1730561478391,0.721973,69335.0,69334.0,7.52428752]
[1730561478611,0.635438,69335.0,69334.0,7.52428752]
[1730561478855,0.577748,69335.0,69334.0,8.96093842]
[1730561479779,0.548904,69335.0,69334.0,8.96093842]
[1730561479987,0.520881,69335.0,69334.0,8.96093842]
[1730561480201,0.463195,69335.0,69334.0,9.04632594]
[1730561480443,0.434352,69335.0,69334.0,9.04632594]
[1730561481039,0.376666,69335.0,69334.0,9.04632594]
[1730561481208,0.290137,69335.0,69334.0,8.96093842]
[1730561482578,0.261294,69335.0,69334.0,9.04630548]
[1730561482806,0.01183716,69335.0,69334.0,9.04630548]
[1730561483008,0.01183716,69335.0,69334.0,9.046287]
[1730561483128,0.51663716,69335.0,69334.0,8.96093842]
[1730561483733,0.40125716,69335.0,69334.0,8.96093842]
[1730561483937,0.3144282,69335.0,69334.0,8.96093842]
[1730561484688,0.2855852,69335.0,69334.0,8.96093842]
[1730561485289,0.1990562,69335.0,69334.0,8.96093842]
[1730561485628,0.1702132,69335.0,69334.0,8.96093842]
[1730561485833,0.0259982,69335.0,69334.0,8.96093842]
[1730561486567,2e-07,69341.0,69340.0,0.117951]
[1730561486773,0.23490212,69355.0,69340.0,0.117951]
[1730561486774,0.23240232,69355.0,69354.0,0.257771]
[1730561486980,0.4916698,69355.0,69354.0,5.43720325]
[1730561487198,0.4051588,69355.0,69354.0,0.40122625]
[1730561487853,0.2609738,69355.0,69354.0,5.44220325]
[1730561488066,0.24352303,69355.0,69354.0,5.44220325]
[1730561488269,0.24352303,69355.0,69354.0,4.45440025]
[1730561489142,0.24352303,69355.0,69354.0,4.34381525]
[1730561489337,0.24352303,69355.0,69354.0,3.97166625]
[1730561489900,0.24352303,69355.0,69354.0,3.97666625]
[1730561490132,0.09933803,69355.0,69354.0,3.97666625]
[1730561490353,0.09933803,69355.0,69354.0,3.97882742]
[1730561490575,0.07050103,69355.0,69354.0,3.97882742]
[1730561491027,0.01282703,69355.0,69354.0,3.97882742]
[1730561491245,3e-08,69355.0,69354.0,4.06538742]
[1730561491475,3e-08,69355.0,69354.0,0.48994742]
[1730561492155,3e-08,69355.0,69354.0,0.57574742]
[1730561492370,3e-08,69363.0,69362.0,0.262759]
[1730561492599,3e-08,69363.0,69362.0,5.69654652]
[1730561492867,0.36043003,69363.0,69362.0,0.49277425]
[1730561493549,0.36043003,69363.0,69362.0,5.53575125]
[1730561493773,0.21626003,69363.0,69362.0,5.47051025]
[1730561493991,0.21626003,69363.0,69362.0,5.47751025]
[1730561494221,0.86503003,69363.0,69362.0,5.47751025]
[1730561494466,0.86503003,69363.0,69362.0,5.47551025]
[1730561494685,0.86503003,69363.0,69362.0,5.47751025]
[1730561494914,0.72086003,69363.0,69362.0,5.47751025]
[1730561495596,0.63435803,69363.0,69362.0,6.72151025]
[1730561495826,0.57669003,69363.0,69362.0,6.71651025]
[1730561496055,0.57669003,69363.0,69362.0,6.72151025]
[1730561496719,0.54785603,69363.0,69362.0,6.72151025]
[1730561496966,0.49018803,69363.0,69362.0,6.72351025]
[1730561497201,0.43252003,69363.0,69362.0,6.72351025]
[1730561497652,0.31718403,69363.0,69362.0,6.71851025]
[1730561497938,0.28835003,69363.0,69362.0,6.72351025]
[1730561498842,0.17301403,69363.0,69362.0,6.72351025]
[1730561499061,0.14418003,69363.0,69362.0,6.72351025]
[1730561499748,0.05767803,69363.0,69362.0,6.72351025]
[1730561499970,1.003e-05,69363.0,69362.0,6.72351025]
[1730561500200,1.003e-05,69363.0,69362.0,6.72151025]
[1730561500417,1.003e-05,69363.0,69362.0,6.72351025]
[1730561500882,1.003e-05,69363.0,69362.0,6.72151025]
[1730561501109,1.003e-05,69363.0,69362.0,6.72351025]
[1730561503638,3e-08,69363.0,69362.0,6.72351025]
[1730561503853,3e-08,69363.0,69362.0,1.74077425]
[1730561503854,0.56226803,69363.0,69362.0,1.74077425]
[1730561504095,0.50458403,69363.0,69362.0,1.74077425]
[1730561504608,0.47575003,69363.0,69362.0,1.73577425]
[1730561504834,0.44691603,69363.0,69362.0,1.74077425]
[1730561505059,0.36041403,69363.0,69362.0,1.74077425]
[1730561505745,0.27391203,69363.0,69362.0,6.78175125]
[1730561506219,0.21624403,69363.0,69362.0,6.78175125]
[1730561506667,0.10090803,69363.0,69362.0,6.78175125]
[1730561506887,0.07207403,69363.0,69362.0,6.78175125]
[1730561508003,0.42421928,69363.0,69362.0,6.86465125]
[1730561508245,0.42421928,69363.0,69362.0,6.97526025]
[1730561508499,0.42421928,69363.0,69362.0,6.20309825]
[1730561508725,0.28004928,69363.0,69362.0,6.20309825]
[1730561508951,0.28004928,69363.0,69362.0,6.2166378]
[1730561509178,0.28004928,69363.0,69362.0,6.20309825]
[1730561509619,0.11511152,69363.0,69362.0,6.37089352]
[1730561509831,0.11511152,69363.0,69362.0,6.39797262]
[1730561510038,0.11511152,69363.0,69362.0,6.20309825]
[1730561510258,0.11511152,69363.0,69362.0,6.30804752]
[1730561510479,0.1126079,69363.0,69362.0,6.30804752]
[1730561510930,0.0261209,69363.0,69362.0,6.30804752]
[1730561511154,9e-07,69374.0,69373.0,0.327463]
[1730561511377,9e-07,69374.0,69373.0,2.21035352]
[1730561511587,9e-07,69374.0,69373.0,2.29165352]
[1730561511792,9e-07,69374.0,69373.0,2.48715352]
[1730561514209,9e-07,69374.0,69373.0,2.21035352]
[1730561514433,9e-07,69374.0,69373.0,2.04255825]
[1730561515930,9e-07,69374.0,69373.0,2.04055825]
[1730561516131,9e-07,69374.0,69373.0,1.91755825]
[1730561516950,9e-07,69374.0,69373.0,1.92755825]
[1730561517162,0.5045209,69374.0,69373.0,1.91755825]
[1730561517433,0.5045209,69374.0,69373.0,2.01255825]
[1730561517655,0.5045209,69374.0,69373.0,2.01755825]
[1730561517882,0.5045209,69374.0,69373.0,2.02755825]
[1730561518120,0.5045209,69374.0,69373.0,2.05055825]
[1730561518767,0.5045209,69374.0,69373.0,2.05255825]
[1730561519001,0.5045209,69374.0,69373.0,2.21835352]
[1730561519002,0.3603759,69374.0,69373.0,2.21835352]
[1730561519205,0.3603759,69374.0,69373.0,2.22035352]
[1730561519873,0.2162309,69374.0,69373.0,7.31893752]
[1730561520761,0.0720859,69374.0,69373.0,7.14914225]
[1730561520989,0.0720859,69374.0,69373.0,6.84734225]
[1730561521205,0.0720859,69374.0,69373.0,7.14864225]
[1730561521862,0.0144279,69374.0,69373.0,7.14864225]
[1730561522079,9e-07,69374.0,69373.0,7.15064225]
[1730561522311,9e-07,69374.0,69373.0,2.27746052]
[1730561524982,9e-07,69374.0,69373.0,2.10766525]
[1730561525197,9e-07,69374.0,69373.0,2.10966525]
[1730561527500,9e-07,69374.0,69373.0,2.27746052]
[1730561529139,0.2705,69390.0,69389.0,0.005]
[1730561529344,0.2705,69390.0,69389.0,5.40831225]
[1730561529773,0.7749,69390.0,69389.0,5.40831225]
[1730561529981,0.7749,69390.0,69389.0,4.38686925]
[1730561530398,0.7749,69390.0,69389.0,4.38589811]
[1730561532515,0.7749,69390.0,69389.0,4.41473811]
[1730561532725,0.7749,69390.0,69389.0,3.23659211]
[1730561532935,0.7749,69390.0,69389.0,3.16006911]
[1730561533555,0.1172,69397.0,69396.0,0.22971]
[1730561533762,0.62155,69397.0,69396.0,0.36816525]
[1730561533972,0.62155,69397.0,69396.0,0.37219411]
[1730561535022,0.62155,69397.0,69396.0,0.39519411]
[1730561537501,0.62155,69397.0,69396.0,2.61020811]
[1730561538164,0.62155,69397.0,69396.0,2.50765111]
[1730561539022,0.62155,69397.0,69396.0,0.39519411]
[1730561539451,0.62155,69397.0,69396.0,2.37740511]
[1730561539892,0.62155,69397.0,69396.0,1.66179011]
[1730561540149,0.62155,69397.0,69396.0,0.60994125]
[1730561540362,0.70385,69397.0,69396.0,0.55419411]
[1730561541022,1.3523,69397.0,69396.0,0.57719411]
[1730561543490,1.3523,69397.0,69396.0,0.55419411]
[1730561543753,1.3523,69397.0,69396.0,0.39519411]
[1730561545102,0.70385,69397.0,69396.0,0.39519411]
[1730561545307,1.3523,69397.0,69396.0,0.39519411]
[1730561547451,1.3523,69397.0,69396.0,0.39116525]
[1730561547659,2.00075,69397.0,69396.0,0.39519411]
[1730561547872,1.3523,69397.0,69396.0,0.39519411]
[1730561548983,1.3523,69397.0,69396.0,0.36816525]
[1730561549208,1.5384,69397.0,69396.0,0.34335411]
[1730561549831,1.5384,69397.0,69396.0,0.33932525]
[1730561550081,1.5384,69397.0,69396.0,0.34335411]
[1730561552551,1.64829162,69397.0,69396.0,0.34335411]
[1730561553205,1.64829162,69397.0,69396.0,0.34096525]
[1730561553425,1.64911162,69397.0,69396.0,0.34096525]
[1730561553663,1.64911162,69397.0,69396.0,0.34499411]
[1730561554818,1.64911162,69397.0,69396.0,0.34096525]
[1730561555024,1.64911162,69397.0,69396.0,0.34499411]
[1730561555492,1.64911162,69397.0,69396.0,0.34096525]
[1730561555707,1.64911162,69397.0,69396.0,0.34499411]
[1730561557255,1.64911162,69397.0,69396.0,0.34096525]
[1730561557470,1.64911162,69397.0,69396.0,0.34499411]
[1730561559253,1.64911162,69397.0,69396.0,0.37383411]
[1730561559929,1.64911162,69397.0,69396.0,0.36128206]
[1730561560142,1.64911162,69397.0,69396.0,0.41888806]
[1730561561064,1.53922,69397.0,69396.0,0.41888806]
[1730561561280,1.53922,69397.0,69396.0,0.4148592]
[1730561561501,1.53922,69397.0,69396.0,0.41888806]
[1730561561711,1.53422,69397.0,69396.0,0.41888806]
[1730561564239,1.53422,69397.0,69396.0,0.4148592]
[1730561564482,1.53422,69397.0,69396.0,0.41888806]
[1730561565310,1.53422,69397.0,69396.0,0.4148592]
[1730561565547,1.53422,69397.0,69396.0,0.41888806]
[1730561566412,1.53422,69397.0,69396.0,0.3860192]
[1730561566867,1.53422,69397.0,69396.0,0.2284132]
[1730561568469,1.53422,69397.0,69396.0,0.3284132]
[1730561569996,1.54019114,69397.0,69396.0,0.18995795]
[1730561570450,1.55367707,69397.0,69396.0,0.18995795]
[1730561570906,2.05802707,69397.0,69396.0,0.18995795]
[1730561571120,1.04932707,69397.0,69396.0,0.18995795]
[1730561571327,1.54019114,69397.0,69396.0,0.18995795]
[1730561571535,1.55367572,69397.0,69396.0,0.18995795]
[1730561572429,1.54019114,69397.0,69396.0,0.18995795]
[1730561573298,1.53922,69397.0,69396.0,0.10164]
[1730561573531,1.53922,69397.0,69396.0,0.20251]
[1730561573532,1.54019114,69397.0,69396.0,0.20251]
[1730561573778,1.54019114,69397.0,69396.0,0.00164]
[1730561574209,1.54019114,69397.0,69388.0,0.10088]
[1730561574210,0.00597114,69389.0,69388.0,0.10088]
[1730561574439,0.00597114,69388.0,69387.0,0.34626752]
[1730561574743,0.00597114,69388.0,69387.0,0.100882]
[1730561574964,0.93820313,69388.0,69387.0,0.100882]
[1730561575170,1.44261313,69388.0,69387.0,0.100882]
[1730561575384,1.42913114,69388.0,69387.0,0.100882]
[1730561575611,1.42913114,69388.0,69385.0,0.11592482]
[1730561575612,0.27627114,69386.0,69385.0,0.11592482]
[1730561576060,0.27627114,69386.0,69385.0,0.100886]
[1730561576061,1.64893438,69386.0,69385.0,0.100886]
[1730561576277,1.14450438,69386.0,69385.0,0.100886]
[1730561576722,1.64893438,69386.0,69385.0,0.100886]
[1730561576955,1.64893438,69386.0,69385.0,0.200886]
[1730561578605,1.14450438,69386.0,69385.0,0.200886]
[1730561578841,1.64893438,69386.0,69385.0,0.200886]
[1730561579481,0.00597114,69384.0,69383.0,0.200887]
[1730561579699,0.11586276,69384.0,69383.0,0.200887]
[1730561579946,0.00597114,69379.0,69378.0,0.20179]
[1730561580172,0.49605438,69379.0,69378.0,0.402686]
[1730561580393,0.49508324,69379.0,69378.0,0.402686]
[1730561580610,1.64893438,69379.0,69378.0,0.402686]
[1730561580815,1.64893438,69379.0,69378.0,0.200896]
[1730561581682,1.53904276,69379.0,69378.0,0.200896]
[1730561582534,1.59673194,69379.0,69378.0,0.200896]
[1730561582749,1.09230194,69379.0,69378.0,0.200896]
[1730561582966,1.4028108,69379.0,69378.0,0.200896]
[1730561583179,1.83096194,69379.0,69378.0,0.200896]
[1730561583389,0.82200194,69379.0,69378.0,0.200896]
[1730561583598,1.32648194,69379.0,69378.0,0.200896]
[1730561585569,1.3255108,69379.0,69378.0,0.200896]
[1730561585782,1.32648194,69379.0,69378.0,0.200896]
[1730561587517,0.82200194,69379.0,69378.0,0.202538]
[1730561587723,1.32648194,69379.0,69378.0,0.202538]
[1730561589702,1.3255108,69379.0,69378.0,0.202538]
[1730561589903,1.25648194,69379.0,69378.0,0.202538]
[1730561590336,1.2555108,69379.0,69378.0,0.202538]
[1730561590557,1.25648194,69379.0,69378.0,0.202538]
[1730561592989,1.2555108,69379.0,69378.0,0.202538]
[1730561593218,1.25648194,69379.0,69378.0,0.202538]
[1730561593532,1.2555108,69379.0,69378.0,0.202538]
[1730561593808,1.25648194,69379.0,69378.0,0.202538]
[1730561594177,1.2555108,69379.0,69378.0,0.34099325]
[1730561594435,1.08793,69379.0,69378.0,0.34099325]
[1730561595600,1.08793,69379.0,69378.0,0.84896211]
[1730561597770,1.2555108,69379.0,69378.0,0.45616211]
[1730561598202,1.2555108,69379.0,69378.0,0.37386211]
[1730561598640,1.2555108,69379.0,69378.0,0.36983325]
[1730561598849,1.2555108,69379.0,69378.0,0.37386211]
[1730561599503,1.2555108,69379.0,69378.0,0.36983325]
[1730561599712,1.2555108,69379.0,69378.0,0.37386211]
[1730561601016,1.2555108,69379.0,69378.0,0.34099325]
[1730561601250,1.2555108,69379.0,69378.0,0.24099325]
[1730561601531,1.2555108,69379.0,69378.0,0.102538]
[1730561603493,1.2555108,69379.0,69378.0,0.202538]
[1730561608378,1.2555108,69379.0,69378.0,0.34099325]
[1730561608609,1.19788565,69379.0,69378.0,0.34099325]
[1730561610365,1.19870665,69379.0,69378.0,0.34099325]
[1730561613324,1.088751,69379.0,69378.0,0.36899325]
[1730561613552,1.088751,69379.0,69378.0,0.56732211]
[1730561613796,1.088751,69379.0,69378.0,1.19992711]
[1730561614009,1.088751,69379.0,69378.0,1.13345311]
[1730561615761,1.088751,69379.0,69378.0,1.20865311]
[1730561616427,1.088751,69379.0,69378.0,1.2514383]
[1730561616633,1.088751,69379.0,69378.0,1.2614383]
[1730561618594,0.944616,69379.0,69378.0,1.21865311]
[1730561618812,0.915789,69379.0,69378.0,1.21865311]
[1730561619032,0.800481,69379.0,69378.0,1.21865311]
[1730561620615,0.742827,69379.0,69378.0,1.21865311]
[1730561620863,0.627519,69379.0,69378.0,1.21865311]
[1730561621774,0.454557,69379.0,69378.0,1.21865311]
[1730561622017,0.42573,69379.0,69378.0,1.20865311]
[1730561622231,1.07435,69379.0,69378.0,1.20865311]
[1730561623533,1.045523,69379.0,69378.0,1.20865311]
[1730561623957,1.016696,69379.0,69378.0,1.20865311]
[1730561626197,1.016696,69379.0,69378.0,1.29512311]
[1730561626634,1.016696,69379.0,69378.0,0.75783211]
[1730561627045,1.016696,69379.0,69378.0,1.28210211]
[1730561627489,1.016696,69379.0,69378.0,1.19454311]
[1730561629208,1.016696,69379.0,69378.0,0.84978411]
[1730561629871,1.016696,69379.0,69378.0,0.74574411]
[1730561630090,1.016696,69379.0,69378.0,0.74171525]
[1730561630303,1.016696,69379.0,69378.0,0.74074411]
[1730561630727,1.016696,69379.0,69378.0,0.74574411]
[1730561630984,1.016696,69379.0,69378.0,0.74074411]
[1730561631199,1.016696,69379.0,69378.0,0.74574411]
[1730561631409,1.016696,69379.0,69378.0,0.74074411]
[1730561632567,1.12665165,69379.0,69378.0,0.74574411]
[1730561632985,1.12665165,69379.0,69378.0,0.71774411]
[1730561633637,1.12665165,69379.0,69378.0,0.71371525]
[1730561633837,1.12665165,69379.0,69378.0,0.71774411]
[1730561634256,1.12665165,69379.0,69378.0,0.74658411]
[1730561636642,1.016696,69379.0,69378.0,0.74658411]
[1730561638553,1.12665165,69379.0,69378.0,0.74658411]
[1730561639985,1.12665165,69379.0,69378.0,0.74255525]
[1730561640193,1.12665165,69379.0,69378.0,0.74658411]
[1730561640603,1.016696,69379.0,69378.0,0.74658411]
[1730561640832,1.016696,69379.0,69378.0,0.37386211]
[1730561641428,1.016696,69379.0,69378.0,1.49972211]
[1730561641662,1.016696,69379.0,69378.0,0.37386211]
[1730561641869,1.016696,69379.0,69378.0,1.44975611]
[1730561642087,1.016696,69379.0,69378.0,1.29564811]
[1730561642303,1.016696,69379.0,69378.0,1.27547511]
[1730561642516,1.016696,69379.0,69378.0,1.27144625]
[1730561642755,1.016696,69379.0,69378.0,1.27547511]
[1730561643190,1.016696,69379.0,69378.0,0.62728025]
[1730561644299,1.016696,69379.0,69378.0,0.63130911]
[1730561644515,1.016696,69379.0,69378.0,0.62728025]
[1730561644717,1.016696,69379.0,69378.0,0.60542925]
[1730561644940,1.016696,69379.0,69378.0,0.56240425]
[1730561645583,1.016696,69379.0,69378.0,0.47411225]
[1730561645758,1.016736,69379.0,69378.0,0.47411225]
[1730561650147,0.728466,69379.0,69378.0,0.79558111]
[1730561650786,0.613158,69379.0,69378.0,0.79558111]
[1730561651015,0.54288578,69379.0,69378.0,2.12402225]
[1730561651265,0.54288578,69379.0,69378.0,2.24515455]
[1730561651475,0.54288578,69379.0,69378.0,2.13805111]
[1730561651669,0.54288578,69379.0,69378.0,2.245009]
[1730561651670,0.51405878,69379.0,69378.0,2.245009]
[1730561652510,0.48523178,69379.0,69378.0,2.13805111]
[1730561652713,0.39875078,69379.0,69378.0,2.13805111]
[1730561652929,0.36992378,69379.0,69378.0,2.13805111]
[1730561653116,0.31226978,69379.0,69378.0,2.13805111]
[1730561653323,0.28344278,69379.0,69378.0,2.24498513]
[1730561653526,0.28344278,69379.0,69378.0,2.24496997]
[1730561653730,0.25461578,69379.0,69378.0,2.24496997]
[1730561653935,0.22578878,69379.0,69378.0,2.24496997]
[1730561654084,0.19696178,69379.0,69378.0,2.24496997]
[1730561654279,0.16813478,69379.0,69378.0,2.24696997]
[1730561654482,0.13930778,69379.0,69378.0,2.24696167]
[1730561654687,0.08165378,69379.0,69378.0,2.24696167]
[1730561654889,7.8e-07,69379.0,69378.0,2.11184267]
[1730561655092,7.8e-07,69379.0,69378.0,7.16184267]
[1730561655322,7.8e-07,69379.0,69378.0,2.11384267]
[1730561655744,7.8e-07,69379.0,69378.0,2.11184267]
[1730561656724,7.8e-07,69379.0,69378.0,2.11181439]
[1730561658048,0.61979378,69379.0,69378.0,2.11181439]
[1730561658254,0.50448578,69379.0,69378.0,2.11181439]
[1730561658881,0.50448578,69379.0,69378.0,7.16181439]
[1730561658882,0.44683178,69379.0,69378.0,7.16181439]
[1730561659116,0.36035078,69379.0,69378.0,6.88575439]
[1730561659324,0.36035078,69379.0,69378.0,6.77887211]
[1730561659538,0.36035078,69379.0,69378.0,6.88570085]
[1730561659745,0.24504278,69379.0,69378.0,6.71084985]
[1730561659945,0.21621578,69379.0,69378.0,6.60602111]
[1730561660644,0.18738878,69379.0,69378.0,6.60402111]
[1730561660815,0.12973478,69379.0,69378.0,6.68947258]
[1730561661008,0.07208078,69379.0,69378.0,6.60402111]
[1730561661610,0.04325378,69379.0,69378.0,6.60402111]
[1730561662047,7.8e-07,69379.0,69378.0,6.60402111]
[1730561662257,7.8e-07,69379.0,69378.0,2.00493211]
[1730561662663,7.8e-07,69379.0,69378.0,2.09037722]
[1730561662835,7.8e-07,69379.0,69378.0,2.00493211]
[1730561663594,7.8e-07,69379.0,69378.0,2.09038355]
[1730561664227,0.11077665,69396.0,69395.0,0.200871]
[1730561664447,0.11077665,69396.0,69395.0,0.33932625]
[1730561664648,0.75923665,69396.0,69395.0,1.21356225]
[1730561665905,0.75923665,69396.0,69395.0,1.04505325]
[1730561666094,0.75923665,69396.0,69395.0,0.92770325]
[1730561666286,0.75923665,69396.0,69395.0,0.58240525]
[1730561666735,1.26359665,69396.0,69395.0,0.58240525]
[1730561670022,1.153641,69396.0,69395.0,0.58240525]
[1730561674071,1.153641,69396.0,69395.0,0.61124525]
[1730561675115,1.153641,69396.0,69395.0,0.66885125]
[1730561676693,1.153641,69396.0,69395.0,1.66884425]
[1730561676915,1.153641,69396.0,69395.0,1.64884425]
[1730561677311,1.153641,69396.0,69395.0,1.62768625]
[1730561677994,1.153641,69396.0,69395.0,1.41320425]
[1730561679173,1.153641,69396.0,69395.0,1.33337325]
[1730561682223,1.153641,69396.0,69395.0,1.32977425]
[1730561683987,1.153641,69396.0,69395.0,1.35277425]
[1730561686924,1.153641,69396.0,69395.0,0.44517325]
[1730561687351,1.153641,69396.0,69395.0,1.67083525]
[1730561687675,1.153641,69396.0,69395.0,1.65066725]
[1730561689813,1.153641,69396.0,69395.0,1.62146625]
[1730561690190,1.153641,69396.0,69395.0,1.59768625]
[1730561690394,1.153641,69396.0,69395.0,1.37878825]
[1730561690593,1.340241,69396.0,69395.0,1.01564625]
[1730561692314,1.340241,69396.0,69395.0,0.98867825]
[1730561692919,1.340241,69396.0,69395.0,0.90223225]
[1730561693125,1.340241,69396.0,69395.0,0.80405525]
[1730561695872,1.340241,69396.0,69395.0,0.76127525]
[1730561696091,1.42021214,69396.0,69395.0,0.097272]
[1730561696981,1.43371748,69396.0,69395.0,0.097272]
[1730561697310,1.43371748,69396.0,69395.0,0.197272]
[1730561697716,1.43274634,69396.0,69395.0,0.197272]
[1730561697918,1.43371748,69396.0,69395.0,0.197272]
[1730561699366,1.42021214,69396.0,69395.0,0.197272]
[1730561699602,1.43370298,69396.0,69395.0,0.197272]
[1730561701530,1.43570075,69396.0,69395.0,0.197272]
[1730561701939,1.43570183,69396.0,69395.0,0.197272]
[1730561703494,1.43370183,69396.0,69395.0,0.197272]
[1730561703704,0.00097114,69391.0,69390.0,0.302635]
[1730561703920,1.00433213,69391.0,69390.0,0.302635]
[1730561704142,1.65279213,69391.0,69390.0,0.302635]
[1730561705009,1.65279213,69391.0,69390.0,0.402635]
[1730561705664,1.65479213,69391.0,69390.0,0.402635]
[1730561705871,1.65479213,69391.0,69390.0,0.1]
[1730561706081,0.28227114,69388.0,69387.0,0.200883]
[1730561706290,1.00654244,69388.0,69387.0,0.200883]
[1730561706504,1.65500244,69388.0,69387.0,0.200883]
[1730561706709,1.76695809,69388.0,69387.0,0.200883]
[1730561706925,1.65700244,69388.0,69387.0,0.200883]
[1730561707362,1.76495809,69388.0,69387.0,0.200883]
[1730561707566,1.76495809,69388.0,69381.0,0.201783]
[1730561707567,0.00097114,69382.0,69381.0,0.302675]
[1730561707779,1.00654244,69382.0,69381.0,0.302675]
[1730561707990,1.67046665,69382.0,69381.0,0.100892]
[1730561708274,0.28227114,69381.0,69380.0,0.001642]
[1730561708516,0.94419535,69381.0,69380.0,0.001642]
[1730561708740,1.45055535,69381.0,69380.0,0.001642]
[1730561710464,1.7274879,69381.0,69380.0,0.001642]
[1730561710686,1.8283799,69381.0,69380.0,0.001642]
[1730561711131,1.5890106,69381.0,69380.0,0.001642]
[1730561711564,1.6899026,69381.0,69380.0,0.001642]
[1730561712435,1.67643839,69381.0,69380.0,0.001642]
[1730561712648,1.68987459,69381.0,69380.0,0.001642]
[1730561713072,1.58898259,69381.0,69380.0,0.001642]
[1730561713710,1.68987459,69381.0,69380.0,0.001642]
[1730561716238,1.71287459,69381.0,69380.0,0.001642]
[1730561716372,0.00297114,69374.0,69373.0,0.00380096]
[1730561716577,2.00631534,69374.0,69373.0,0.00380096]
[1730561716834,2.01975154,69374.0,69373.0,0.00380096]
[1730561717777,2.15822884,69374.0,69373.0,0.00380096]
[1730561720594,2.17967903,69374.0,69373.0,0.00380096]
[1730561721384,2.17967903,69374.0,69373.0,0.00164]
[1730561721593,2.15822884,69374.0,69373.0,0.00164]
[1730561725545,2.15822884,69374.0,69373.0,0.00164]
[1730561725771,0.00297114,69367.0,69366.0,0.21654552]
[1730561725907,0.46401824,69367.0,69366.0,0.21654552]
[1730561726094,0.46400131,69367.0,69366.0,0.21654552]
[1730561726303,0.00097114,69363.0,69362.0,0.102559]
[1730561726513,0.23430171,69363.0,69362.0,0.102559]
[1730561726768,0.23630171,69363.0,69362.0,0.102559]
[1730561726913,1.38912171,69363.0,69362.0,0.102559]
[1730561728700,1.38913085,69363.0,69362.0,0.102559]
[1730561729588,1.37570244,69363.0,69362.0,0.102559]
[1730561729815,1.38913584,69363.0,69362.0,0.102559]
[1730561731308,1.46733584,69363.0,69362.0,0.00164]
[1730561731708,1.71574674,69363.0,69362.0,0.00164]
[1730561732338,2.01586474,69363.0,69362.0,0.00164]
[1730561733086,1.91495855,69363.0,69362.0,0.00164]
[1730561734672,1.93648732,69363.0,69362.0,0.00164]
[1730561735133,2.03740532,69363.0,69362.0,0.00164]
[1730561735335,2.17588262,69363.0,69362.0,0.00164]
[1730561736715,2.17592292,69363.0,69362.0,0.00164]
[1730561737115,2.17592253,69363.0,69362.0,0.00164]
[1730561737343,1.82657158,69363.0,69362.0,0.00164]
[1730561737542,1.82657158,69363.0,69362.0,0.102559]
[1730561737543,1.40871633,69363.0,69362.0,0.102559]
[1730561738709,1.29876068,69363.0,69362.0,0.102559]
[1730561739612,1.27721367,69363.0,69362.0,0.102559]
[1730561739850,1.27721367,69363.0,69362.0,0.202559]
[1730561740486,1.33494209,69363.0,69362.0,0.202559]
[1730561741769,1.33494209,69363.0,69362.0,0.478459]
[1730561741978,1.33397095,69363.0,69362.0,0.478459]
[1730561742646,1.33397095,69363.0,69362.0,0.61691425]
[1730561742894,1.32050407,69363.0,69362.0,0.61691425]
[1730561743133,1.33398753,69363.0,69362.0,0.61691425]
[1730561743481,1.33398753,69363.0,69362.0,0.62375709]
[1730561743894,1.33398753,69363.0,69362.0,0.478459]
[1730561743895,1.34207697,69363.0,69362.0,0.478459]
[1730561744100,1.51073218,69363.0,69362.0,0.202559]
[1730561744330,1.52421524,69363.0,69362.0,0.202559]
[1730561744475,1.52621524,69363.0,69362.0,0.202559]
[1730561744895,1.52421524,69363.0,69362.0,0.202559]
[1730561745799,1.5232441,69363.0,69362.0,0.202559]
[1730561747112,1.52421524,69363.0,69362.0,0.202559]
[1730561747332,1.50264469,69363.0,69362.0,0.202559]
[1730561747563,1.52422136,69363.0,69362.0,0.202559]
[1730561747776,1.48915928,69363.0,69362.0,0.202559]
[1730561747977,1.52422237,69363.0,69362.0,0.202559]
[1730561751022,1.52422231,69363.0,69362.0,0.202559]
[1730561755781,1.35653824,69363.0,69362.0,0.202559]
[1730561756406,1.35653579,69363.0,69362.0,0.202559]
[1730561756635,1.52421986,69363.0,69362.0,0.202559]
[1730561757046,1.52621986,69363.0,69362.0,0.202559]